[Event "Early-Titled-Tuesday-Blitz-February-13-2024"]
[Site "Chess.com"]
[Date "2024.02.13"]
[Round "6"]
[White "KanalSzachowy"]
[Black "profedechess93"]
[Result "0-1"]
[WhiteElo "2410"]
[BlackElo "2630"]
[TimeControl "180+1"]
[EndTime "9:10:18 PST"]
[Termination "profedechess93 won by checkmate"]

1. e4 {[%clk 0:02:20]} 1... e6 {[%clk 0:02:59.8]} 2. d4 {[%clk 0:02:19.1]} 2...
d5 {[%clk 0:03:00.1]} 3. Nc3 {[%clk 0:02:19.2]} 3... Nf6 {[%clk 0:02:59.2]} 4.
e5 {[%clk 0:02:19.3]} 4... Nfd7 {[%clk 0:02:58.8]} 5. f4 {[%clk 0:02:19.8]} 5...
c5 {[%clk 0:02:59.3]} 6. Nf3 {[%clk 0:02:20.4]} 6... Nc6 {[%clk 0:03:00]} 7. Be3
{[%clk 0:02:20.9]} 7... a6 {[%clk 0:03:00.7]} 8. a3 {[%clk 0:02:19.9]} 8... b5
{[%clk 0:03:00.9]} 9. Bd3 {[%clk 0:02:16.5]} 9... Qb6 {[%clk 0:03:00.1]} 10. O-O
{[%clk 0:02:08.1]} 10... cxd4 {[%clk 0:02:56.9]} 11. Bf2 {[%clk 0:02:05.7]}
11... Bc5 {[%clk 0:02:50.1]} 12. Na2 {[%clk 0:02:00.7]} 12... b4 {[%clk
0:02:45.5]} 13. axb4 {[%clk 0:01:48.1]} 13... Nxb4 {[%clk 0:02:44.5]} 14. Nxb4
{[%clk 0:01:48.7]} 14... Qxb4 {[%clk 0:02:43.3]} 15. f5 {[%clk 0:01:48.9]} 15...
exf5 {[%clk 0:01:23.7]} 16. Bxf5 {[%clk 0:01:48.7]} 16... Nf8 {[%clk 0:01:21]}
17. c3 {[%clk 0:01:43]} 17... Qxb2 {[%clk 0:00:55]} 18. Qa4+ {[%clk 0:01:25.5]}
18... Bd7 {[%clk 0:00:54.3]} 19. Bxd7+ {[%clk 0:01:24.7]} 19... Nxd7 {[%clk
0:00:55.2]} 20. Qc6 {[%clk 0:01:22.1]} 20... Rd8 {[%clk 0:00:45.4]} 21. cxd4
{[%clk 0:01:15]} 21... Be7 {[%clk 0:00:43]} 22. Qxd5 {[%clk 0:01:06.2]} 22...
O-O {[%clk 0:00:42.5]} 23. Qe4 {[%clk 0:01:06.5]} 23... h6 {[%clk 0:00:23.4]}
24. Rxa6 {[%clk 0:01:04.5]} 24... Rfe8 {[%clk 0:00:20.9]} 25. Qf4 {[%clk
0:00:50.6]} 25... Qb3 {[%clk 0:00:16.3]} 26. Raa1 {[%clk 0:00:37.3]} 26... Nf8
{[%clk 0:00:16.1]} 27. Rab1 {[%clk 0:00:37.1]} 27... Qd5 {[%clk 0:00:16.2]} 28.
Rbd1 {[%clk 0:00:30.9]} 28... Ne6 {[%clk 0:00:16.3]} 29. Qg3 {[%clk 0:00:31]}
29... Rc8 {[%clk 0:00:15.7]} 30. Nh4 {[%clk 0:00:27.8]} 30... Rc2 {[%clk
0:00:13.6]} 31. Nf5 {[%clk 0:00:27.5]} 31... Bg5 {[%clk 0:00:14.3]} 32. h4
{[%clk 0:00:19.5]} 32... Bf4 {[%clk 0:00:13.2]} 33. Qg4 {[%clk 0:00:18.6]} 33...
Kh7 {[%clk 0:00:11.4]} 34. g3 {[%clk 0:00:14.1]} 34... Bd2 {[%clk 0:00:08.5]}
35. Be3 {[%clk 0:00:06.6]} 35... Bb4 {[%clk 0:00:08.1]} 36. Nd6 {[%clk
0:00:03.2]} 36... Qg2# {[%clk 0:00:07.5]} 0-1

[Event "Early-Titled-Tuesday-Blitz-February-13-2024"]
[Site "Chess.com"]
[Date "2024.02.13"]
[Round "6"]
[White "Attacks_Hurricane"]
[Black "DrCeltic"]
[Result "1-0"]
[WhiteElo "2344"]
[BlackElo "2554"]
[TimeControl "180+1"]
[EndTime "9:10:22 PST"]
[Termination "Attacks_Hurricane won by resignation"]

1. e4 {[%clk 0:03:00.9]} 1... c5 {[%clk 0:02:59.9]} 2. Nf3 {[%clk 0:03:00.8]}
2... e6 {[%clk 0:02:59.9]} 3. d4 {[%clk 0:02:59.8]} 3... cxd4 {[%clk 0:03:00.8]}
4. Bg5 {[%clk 0:03:00.4]} 4... Nf6 {[%clk 0:03:01.7]} 5. Qxd4 {[%clk 0:02:57.3]}
5... Nc6 {[%clk 0:03:00.5]} 6. Qe3 {[%clk 0:02:56.1]} 6... Qa5+ {[%clk
0:02:54.4]} 7. Nc3 {[%clk 0:02:56]} 7... Bb4 {[%clk 0:02:47.3]} 8. Bxf6 {[%clk
0:02:51.9]} 8... gxf6 {[%clk 0:02:48.2]} 9. O-O-O {[%clk 0:02:49.6]} 9... Bxc3
{[%clk 0:02:46.4]} 10. Qxc3 {[%clk 0:02:50.5]} 10... Qxc3 {[%clk 0:02:46.8]} 11.
bxc3 {[%clk 0:02:51.4]} 11... b6 {[%clk 0:02:39.3]} 12. Nd4 {[%clk 0:02:51.2]}
12... Ke7 {[%clk 0:02:25.7]} 13. Nb5 {[%clk 0:02:48]} 13... Ba6 {[%clk
0:02:15.7]} 14. Nc7 {[%clk 0:02:47.4]} 14... Bxf1 {[%clk 0:02:15.4]} 15. Nxa8
{[%clk 0:02:23.8]} 15... Bxg2 {[%clk 0:02:15.1]} 16. Rhg1 {[%clk 0:02:22.6]}
16... Bf3 {[%clk 0:02:14.3]} 17. Rd3 {[%clk 0:02:21.3]} 17... Bxe4 {[%clk
0:02:09.1]} 18. Re3 {[%clk 0:02:20.8]} 18... f5 {[%clk 0:01:59.9]} 19. Nc7
{[%clk 0:02:20.6]} 19... a6 {[%clk 0:01:36.7]} 20. f3 {[%clk 0:02:15.8]} 20...
Kd6 {[%clk 0:01:28.9]} 21. fxe4 {[%clk 0:02:01.8]} 21... Kxc7 {[%clk 0:01:26.1]}
22. exf5 {[%clk 0:02:02.7]} 22... Ne7 {[%clk 0:01:18.6]} 23. fxe6 {[%clk
0:02:02.9]} 23... fxe6 {[%clk 0:01:16.7]} 24. Rh3 {[%clk 0:02:00.4]} 24... Nf5
{[%clk 0:01:15.8]} 25. Rg5 {[%clk 0:01:58.3]} 25... h6 {[%clk 0:01:15.3]} 26.
Rg6 {[%clk 0:01:56.6]} 26... Kd6 {[%clk 0:01:09.2]} 27. Rd3+ {[%clk 0:01:55.7]}
27... Ke7 {[%clk 0:01:08.6]} 28. Rg4 {[%clk 0:01:55.8]} 28... Rc8 {[%clk
0:01:07.1]} 29. Ra4 {[%clk 0:01:53.8]} 29... a5 {[%clk 0:01:06.5]} 30. Re4
{[%clk 0:01:52.3]} 30... h5 {[%clk 0:01:05.7]} 31. Rf3 {[%clk 0:01:49.9]} 31...
Kf6 {[%clk 0:01:05.2]} 32. Rh3 {[%clk 0:01:42.8]} 32... h4 {[%clk 0:01:04.7]}
33. Rf3 {[%clk 0:01:42]} 33... Rg8 {[%clk 0:01:03.9]} 34. Rxh4 {[%clk
0:01:39.8]} 34... Rg1+ {[%clk 0:01:02.5]} 35. Kb2 {[%clk 0:01:39.3]} 35... Kg5
{[%clk 0:00:58.3]} 36. Rh8 {[%clk 0:01:36.9]} 36... Rh1 {[%clk 0:00:55.5]} 37.
Rg8+ {[%clk 0:01:36.2]} 37... Kf6 {[%clk 0:00:55.5]} 38. h3 {[%clk 0:01:34.1]}
38... Ke5 {[%clk 0:00:51.6]} 39. c4 {[%clk 0:01:26.6]} 39... Kd4 {[%clk
0:00:44.5]} 40. Rg4+ {[%clk 0:01:25.7]} 40... Kc5 {[%clk 0:00:42.6]} 41. Rd3
{[%clk 0:01:19.9]} 41... d6 {[%clk 0:00:41.3]} 42. Re4 {[%clk 0:01:18.8]} 42...
e5 {[%clk 0:00:38.3]} 43. Rg4 {[%clk 0:01:14.5]} 43... Rh2 {[%clk 0:00:35.2]}
44. Rd5+ {[%clk 0:01:08.7]} 44... Kc6 {[%clk 0:00:30.8]} 45. Rg6 {[%clk
0:01:01]} 45... Rxh3 {[%clk 0:00:25.8]} 46. Rxe5 {[%clk 0:01:00.3]} 46... Rf3
{[%clk 0:00:11]} 47. Rd5 {[%clk 0:00:56.3]} 47... Rf4 {[%clk 0:00:07.7]} 48. Rf6
{[%clk 0:00:54.4]} 48... Rxc4 {[%clk 0:00:05.2]} 49. Rdxf5 {[%clk 0:00:54.5]}
49... Rb4+ {[%clk 0:00:05.5]} 50. Kc1 {[%clk 0:00:54.2]} 50... Rd4 {[%clk
0:00:06.1]} 51. Rf3 {[%clk 0:00:53.9]} 51... b5 {[%clk 0:00:05.8]} 52. Rc3+
{[%clk 0:00:53.6]} 52... Kb6 {[%clk 0:00:06.3]} 53. Rd3 {[%clk 0:00:54.5]} 1-0

[Event "Early-Titled-Tuesday-Blitz-February-13-2024"]
[Site "Chess.com"]
[Date "2024.02.13"]
[Round "6"]
[White "GrotBchess"]
[Black "PolandHussars"]
[Result "0-1"]
[WhiteElo "2383"]
[BlackElo "2594"]
[TimeControl "180+1"]
[EndTime "9:10:25 PST"]
[Termination "PolandHussars won by resignation"]

1. c4 {[%clk 0:03:00.9]} 1... e6 {[%clk 0:02:58.7]} 2. d4 {[%clk 0:03:00.5]}
2... b6 {[%clk 0:02:59.1]} 3. Nf3 {[%clk 0:03:00.5]} 3... Bb7 {[%clk 0:02:59.5]}
4. Nc3 {[%clk 0:03:00.7]} 4... Nf6 {[%clk 0:02:59.9]} 5. a3 {[%clk 0:03:00.2]}
5... c5 {[%clk 0:02:59.6]} 6. e3 {[%clk 0:02:55.8]} 6... Be7 {[%clk 0:02:58.4]}
7. Be2 {[%clk 0:02:55.6]} 7... O-O {[%clk 0:02:58.6]} 8. O-O {[%clk 0:02:55.7]}
8... d6 {[%clk 0:02:59]} 9. b4 {[%clk 0:02:51.6]} 9... Nbd7 {[%clk 0:02:55.4]}
10. Bb2 {[%clk 0:02:51.1]} 10... Qc7 {[%clk 0:02:55]} 11. Rc1 {[%clk 0:02:50.6]}
11... Rac8 {[%clk 0:02:54.9]} 12. h3 {[%clk 0:02:49]} 12... Qb8 {[%clk
0:02:55.2]} 13. Qb3 {[%clk 0:02:43.7]} 13... d5 {[%clk 0:02:49]} 14. cxd5 {[%clk
0:02:36.9]} 14... Nxd5 {[%clk 0:02:47]} 15. Nxd5 {[%clk 0:02:37]} 15... Bxd5
{[%clk 0:02:47.3]} 16. Bc4 {[%clk 0:02:36.7]} 16... Bxf3 {[%clk 0:02:40.6]} 17.
gxf3 {[%clk 0:02:36.1]} 17... cxb4 {[%clk 0:02:41]} 18. axb4 {[%clk 0:02:34.3]}
18... Qd6 {[%clk 0:02:28.9]} 19. f4 {[%clk 0:02:20.3]} 19... Nf6 {[%clk
0:02:21.4]} 20. Ba3 {[%clk 0:02:13.6]} 20... a5 {[%clk 0:02:13.3]} 21. Rb1
{[%clk 0:02:03.3]} 21... Rc7 {[%clk 0:01:50.3]} 22. Rfc1 {[%clk 0:01:12.5]}
22... Rfc8 {[%clk 0:01:47.9]} 23. Ba6 {[%clk 0:01:12.5]} 23... Rxc1+ {[%clk
0:01:47]} 24. Bxc1 {[%clk 0:01:12.2]} 24... Ra8 {[%clk 0:01:42.8]} 25. Bb7
{[%clk 0:01:03.2]} 25... Rb8 {[%clk 0:01:39.1]} 26. Bf3 {[%clk 0:00:51.8]} 26...
Qxb4 {[%clk 0:01:36.4]} 27. Qc2 {[%clk 0:00:46.2]} 27... Qd6 {[%clk 0:01:28.9]}
28. Bd2 {[%clk 0:00:40.4]} 28... Nd5 {[%clk 0:01:17.3]} 29. Bxd5 {[%clk
0:00:31.2]} 29... Qxd5 {[%clk 0:01:02.6]} 30. Qc7 {[%clk 0:00:29.5]} 30... Bd6
{[%clk 0:01:01.4]} 31. Qa7 {[%clk 0:00:27.4]} 31... h5 {[%clk 0:00:35.2]} 32.
Rxb6 {[%clk 0:00:21.6]} 32... Rxb6 {[%clk 0:00:35.5]} 33. Qxb6 {[%clk
0:00:21.9]} 33... a4 {[%clk 0:00:33]} 34. Bb4 {[%clk 0:00:18.8]} 34... Bxb4
{[%clk 0:00:30.3]} 35. Qxb4 {[%clk 0:00:19.3]} 35... Qb3 {[%clk 0:00:28.8]} 36.
Qe7 {[%clk 0:00:19.3]} 36... g6 {[%clk 0:00:22.4]} 37. f5 {[%clk 0:00:16.1]}
37... Qb1+ {[%clk 0:00:20.5]} 38. Kg2 {[%clk 0:00:13.5]} 38... Qe4+ {[%clk
0:00:19.8]} 39. Kg3 {[%clk 0:00:11.3]} 39... h4+ {[%clk 0:00:18.3]} 40. Kh2
{[%clk 0:00:08.8]} 40... Qxf5 {[%clk 0:00:18.6]} 41. Kg2 {[%clk 0:00:07.3]}
41... Qb5 {[%clk 0:00:16.9]} 42. Qxh4 {[%clk 0:00:06.8]} 42... a3 {[%clk
0:00:16.2]} 43. Qd8+ {[%clk 0:00:07.4]} 43... Kg7 {[%clk 0:00:16.6]} 44. Qa8
{[%clk 0:00:06.9]} 44... Qd5+ {[%clk 0:00:16.3]} 45. Qxd5 {[%clk 0:00:07.1]}
45... exd5 {[%clk 0:00:17.2]} 46. e4 {[%clk 0:00:06.6]} 46... a2 {[%clk
0:00:17]} 47. exd5 {[%clk 0:00:06.7]} 47... a1=Q {[%clk 0:00:17.6]} 48. d6
{[%clk 0:00:07.6]} 48... Qxd4 {[%clk 0:00:18.2]} 49. d7 {[%clk 0:00:07.7]} 49...
Qd5+ {[%clk 0:00:18.6]} 0-1

[Event "Early-Titled-Tuesday-Blitz-February-13-2024"]
[Site "Chess.com"]
[Date "2024.02.13"]
[Round "6"]
[White "abelmat"]
[Black "johnmez"]
[Result "1/2-1/2"]
[WhiteElo "2086"]
[BlackElo "2276"]
[TimeControl "180+1"]
[EndTime "9:10:25 PST"]
[Termination "Game drawn by repetition"]

1. d4 {[%clk 0:02:56.7]} 1... Nf6 {[%clk 0:02:59.5]} 2. c4 {[%clk 0:02:56.8]}
2... c5 {[%clk 0:03:00]} 3. Nf3 {[%clk 0:02:56.6]} 3... cxd4 {[%clk 0:02:58.2]}
4. Nxd4 {[%clk 0:02:57.5]} 4... Nc6 {[%clk 0:02:56.3]} 5. g3 {[%clk 0:02:57.4]}
5... g6 {[%clk 0:02:48.5]} 6. Bg2 {[%clk 0:02:56.7]} 6... Bg7 {[%clk 0:02:48.8]}
7. O-O {[%clk 0:02:57.1]} 7... O-O {[%clk 0:02:49.4]} 8. Nc3 {[%clk 0:02:57.5]}
8... Nxd4 {[%clk 0:02:46.4]} 9. Qxd4 {[%clk 0:02:58.4]} 9... d6 {[%clk 0:02:47]}
10. c5 {[%clk 0:02:57.7]} 10... Nd7 {[%clk 0:02:33.5]} 11. Qh4 {[%clk
0:02:56.8]} 11... Nxc5 {[%clk 0:02:29.8]} 12. Bg5 {[%clk 0:02:56.6]} 12... Re8
{[%clk 0:02:06.1]} 13. Nd5 {[%clk 0:02:55.7]} 13... Bf8 {[%clk 0:01:50.6]} 14.
Rac1 {[%clk 0:02:50.3]} 14... Be6 {[%clk 0:01:33.3]} 15. b4 {[%clk 0:02:41.1]}
15... Na6 {[%clk 0:00:55.9]} 16. a3 {[%clk 0:02:36.1]} 16... Qd7 {[%clk
0:00:49.2]} 17. Nf4 {[%clk 0:02:28.2]} 17... Bf5 {[%clk 0:00:41.2]} 18. Nd5
{[%clk 0:01:57.1]} 18... Be6 {[%clk 0:00:08.4]} 19. Nf4 {[%clk 0:01:42.7]} 19...
Rac8 {[%clk 0:00:08.6]} 20. Nxe6 {[%clk 0:01:35.8]} 20... fxe6 {[%clk
0:00:08.7]} 21. Bh3 {[%clk 0:01:23.6]} 21... Nc7 {[%clk 0:00:05.6]} 22. Qe4
{[%clk 0:01:20]} 22... d5 {[%clk 0:00:05.5]} 23. Qe3 {[%clk 0:00:41.6]} 23...
Bg7 {[%clk 0:00:03.1]} 24. Rxc7 {[%clk 0:00:36.2]} 24... Qxc7 {[%clk 0:00:02.2]}
25. Bxe6+ {[%clk 0:00:35.4]} 25... Kh8 {[%clk 0:00:02.9]} 26. h4 {[%clk
0:00:29]} 26... Qd6 {[%clk 0:00:02.5]} 27. Bxc8 {[%clk 0:00:20.1]} 27... Rxc8
{[%clk 0:00:03.4]} 28. Qxa7 {[%clk 0:00:20]} 28... Rc3 {[%clk 0:00:03.1]} 29.
Qxb7 {[%clk 0:00:17.4]} 29... Rxg3+ {[%clk 0:00:02.6]} 30. fxg3 {[%clk
0:00:06.7]} 30... Qxg3+ {[%clk 0:00:03.5]} 31. Kh1 {[%clk 0:00:06.2]} 31... Qh3+
{[%clk 0:00:03.4]} 32. Kg1 {[%clk 0:00:06.1]} 32... Bd4+ {[%clk 0:00:04]} 33. e3
{[%clk 0:00:05.2]} 33... Qg3+ {[%clk 0:00:04.5]} 34. Kh1 {[%clk 0:00:05.1]}
34... Qh3+ {[%clk 0:00:05]} 35. Kg1 {[%clk 0:00:05]} 35... Qg3+ {[%clk
0:00:05.1]} 36. Kh1 {[%clk 0:00:05.2]} 36... Qh3+ {[%clk 0:00:05.5]} 37. Kg1
{[%clk 0:00:05]} 1/2-1/2

[Event "Early-Titled-Tuesday-Blitz-February-13-2024"]
[Site "Chess.com"]
[Date "2024.02.13"]
[Round "6"]
[White "GoValya"]
[Black "amiqu"]
[Result "0-1"]
[WhiteElo "2269"]
[BlackElo "2069"]
[TimeControl "180+1"]
[EndTime "9:10:26 PST"]
[Termination "amiqu won on time"]

1. d4 {[%clk 0:03:00.9]} 1... Nf6 {[%clk 0:02:58.7]} 2. g3 {[%clk 0:03:00.7]}
2... d5 {[%clk 0:02:57.7]} 3. Bg2 {[%clk 0:03:00.9]} 3... e6 {[%clk 0:02:58.4]}
4. c4 {[%clk 0:02:59.5]} 4... dxc4 {[%clk 0:02:55.3]} 5. Nf3 {[%clk 0:02:56.8]}
5... Nc6 {[%clk 0:02:54.6]} 6. O-O {[%clk 0:02:56.3]} 6... Rb8 {[%clk
0:02:54.2]} 7. a4 {[%clk 0:02:55.5]} 7... b6 {[%clk 0:02:50.6]} 8. Nc3 {[%clk
0:02:52.1]} 8... Be7 {[%clk 0:02:44.2]} 9. e4 {[%clk 0:02:44.8]} 9... Nb4 {[%clk
0:02:37.7]} 10. Qe2 {[%clk 0:02:29]} 10... O-O {[%clk 0:02:35.9]} 11. Rd1 {[%clk
0:02:10.4]} 11... Ba6 {[%clk 0:02:34]} 12. Ne5 {[%clk 0:02:05.3]} 12... Nd3
{[%clk 0:02:27.5]} 13. Nc6 {[%clk 0:01:59.7]} 13... Qd7 {[%clk 0:02:25.7]} 14.
Nxb8 {[%clk 0:01:59.5]} 14... Rxb8 {[%clk 0:02:25.9]} 15. d5 {[%clk 0:01:52.5]}
15... Bc5 {[%clk 0:02:17.5]} 16. Be3 {[%clk 0:01:48.1]} 16... Bxe3 {[%clk
0:02:12.9]} 17. fxe3 {[%clk 0:01:47.9]} 17... exd5 {[%clk 0:02:05.4]} 18. exd5
{[%clk 0:01:35.7]} 18... Re8 {[%clk 0:02:02.4]} 19. Rf1 {[%clk 0:01:12.2]} 19...
Qe7 {[%clk 0:01:47.9]} 20. e4 {[%clk 0:00:53.2]} 20... Qc5+ {[%clk 0:01:43.9]}
21. Kh1 {[%clk 0:00:53.3]} 21... Nxd5 {[%clk 0:01:40.3]} 22. Nxd5 {[%clk
0:00:22.8]} 22... Qxd5 {[%clk 0:01:39.9]} 23. exd5 {[%clk 0:00:23.1]} 23... Rxe2
{[%clk 0:01:39.3]} 24. a5 {[%clk 0:00:23.2]} 24... b5 {[%clk 0:01:20.9]} 25. d6
{[%clk 0:00:15.8]} 25... cxd6 {[%clk 0:01:19]} 26. Bd5 {[%clk 0:00:15.9]} 26...
Re7 {[%clk 0:01:01.2]} 27. b3 {[%clk 0:00:13.2]} 27... Nb4 {[%clk 0:00:51.5]}
28. bxc4 {[%clk 0:00:11.3]} 28... bxc4 {[%clk 0:00:51.1]} 29. Bf3 {[%clk
0:00:08.6]} 29... g6 {[%clk 0:00:47]} 30. Rab1 {[%clk 0:00:08.8]} 30... Nd3
{[%clk 0:00:45.9]} 31. Rb8+ {[%clk 0:00:08.7]} 31... Kg7 {[%clk 0:00:45.9]} 32.
Bd5 {[%clk 0:00:06.4]} 32... Ne5 {[%clk 0:00:43.7]} 33. Rb4 {[%clk 0:00:04.6]}
33... c3 {[%clk 0:00:41]} 34. Rc1 {[%clk 0:00:04.7]} 34... Nd3 {[%clk 0:00:41]}
35. Rbb1 {[%clk 0:00:03.6]} 35... Nxc1 {[%clk 0:00:39.7]} 36. Rxc1 {[%clk
0:00:04.5]} 36... Re3 {[%clk 0:00:37.1]} 37. Kg2 {[%clk 0:00:04]} 37... Rd3
{[%clk 0:00:37]} 38. Be4 {[%clk 0:00:04.2]} 38... Rd4 {[%clk 0:00:35.4]} 39. Kf3
{[%clk 0:00:03.9]} 39... d5 {[%clk 0:00:32.2]} 40. Bc2 {[%clk 0:00:04.1]} 40...
Rd2 {[%clk 0:00:31.3]} 41. h4 {[%clk 0:00:04.4]} 41... d4 {[%clk 0:00:31.6]} 42.
Be4 {[%clk 0:00:04.1]} 42... h5 {[%clk 0:00:27.2]} 43. Rc2 {[%clk 0:00:02.5]}
43... Rxc2 {[%clk 0:00:26.3]} 44. Bxc2 {[%clk 0:00:03.4]} 44... d3 {[%clk
0:00:27.1]} 45. Bd1 {[%clk 0:00:01.7]} 45... c2 {[%clk 0:00:27.1]} 0-1

[Event "Early-Titled-Tuesday-Blitz-February-13-2024"]
[Site "Chess.com"]
[Date "2024.02.13"]
[Round "6"]
[White "Hikaru"]
[Black "K_A_S_T_O_R"]
[Result "1-0"]
[WhiteElo "3369"]
[BlackElo "2869"]
[TimeControl "180+1"]
[EndTime "9:10:27 PST"]
[Termination "Hikaru won by resignation"]

1. d4 {[%clk 0:03:00.9]} 1... Nf6 {[%clk 0:02:56.3]} 2. Bg5 {[%clk 0:03:00.7]}
2... e6 {[%clk 0:02:56.5]} 3. e4 {[%clk 0:02:59.5]} 3... h6 {[%clk 0:02:56.3]}
4. Bxf6 {[%clk 0:02:59.6]} 4... Qxf6 {[%clk 0:02:56.8]} 5. Nc3 {[%clk
0:03:00.5]} 5... d6 {[%clk 0:02:54.8]} 6. Qd2 {[%clk 0:02:59]} 6... g5 {[%clk
0:02:53.8]} 7. O-O-O {[%clk 0:02:58.6]} 7... Bg7 {[%clk 0:02:51.8]} 8. g3 {[%clk
0:02:58.1]} 8... Nc6 {[%clk 0:02:41.7]} 9. Nb5 {[%clk 0:02:55.9]} 9... Qe7
{[%clk 0:02:38.6]} 10. c3 {[%clk 0:02:56.2]} 10... a6 {[%clk 0:02:37.9]} 11. Na3
{[%clk 0:02:56.5]} 11... Bd7 {[%clk 0:02:36.1]} 12. Nc2 {[%clk 0:02:52]} 12...
O-O-O {[%clk 0:02:34]} 13. Bg2 {[%clk 0:02:51.7]} 13... f5 {[%clk 0:02:31.4]}
14. exf5 {[%clk 0:02:50.7]} 14... exf5 {[%clk 0:02:31.6]} 15. f4 {[%clk
0:02:51.3]} 15... gxf4 {[%clk 0:02:16.8]} 16. gxf4 {[%clk 0:02:51]} 16... Rde8
{[%clk 0:02:17]} 17. Bf3 {[%clk 0:02:47.2]} 17... Qh4 {[%clk 0:02:11.8]} 18. Ne2
{[%clk 0:02:45.3]} 18... h5 {[%clk 0:02:10]} 19. Kb1 {[%clk 0:02:39.7]} 19...
Bh6 {[%clk 0:02:09.8]} 20. c4 {[%clk 0:02:23]} 20... Re7 {[%clk 0:01:38.9]} 21.
d5 {[%clk 0:02:01.8]} 21... Nd8 {[%clk 0:01:36.9]} 22. c5 {[%clk 0:02:01.2]}
22... dxc5 {[%clk 0:01:30]} 23. d6 {[%clk 0:01:54.2]} 23... cxd6 {[%clk
0:01:23.1]} 24. Qxd6 {[%clk 0:01:55.1]} 24... Rhe8 {[%clk 0:01:14.1]} 25. Qxh6
{[%clk 0:01:40.2]} 25... Rxe2 {[%clk 0:01:08.8]} 26. Qxh5 {[%clk 0:00:50]} 26...
Qxh5 {[%clk 0:01:00.1]} 27. Bxh5 {[%clk 0:00:49.4]} 27... Bc6 {[%clk 0:01:00.6]}
28. Rhg1 {[%clk 0:00:45.6]} 28... R2e7 {[%clk 0:00:27.1]} 29. Bxe8 {[%clk
0:00:45]} 29... Rxe8 {[%clk 0:00:28]} 30. Kc1 {[%clk 0:00:44.2]} 30... Rh8
{[%clk 0:00:26.5]} 31. Ne3 {[%clk 0:00:43.2]} 31... Be4 {[%clk 0:00:25.2]} 32.
Nc4 {[%clk 0:00:43.6]} 32... Kc7 {[%clk 0:00:24.2]} 33. Nd6 {[%clk 0:00:40.1]}
33... Ne6 {[%clk 0:00:21.4]} 34. Nxe4 {[%clk 0:00:38.8]} 34... fxe4 {[%clk
0:00:22.1]} 35. Rge1 {[%clk 0:00:38]} 35... Rxh2 {[%clk 0:00:17.2]} 36. Rxe4
{[%clk 0:00:38.1]} 36... Nd4 {[%clk 0:00:18.1]} 37. Kb1 {[%clk 0:00:37.6]} 37...
Rf2 {[%clk 0:00:17.7]} 38. Re7+ {[%clk 0:00:24.1]} 38... Kc6 {[%clk 0:00:17.9]}
39. Rh1 {[%clk 0:00:23.1]} 39... Rxf4 {[%clk 0:00:14.3]} 40. Rh6+ {[%clk
0:00:23]} 40... Kd5 {[%clk 0:00:14.8]} 41. a3 {[%clk 0:00:20.6]} 41... b5 {[%clk
0:00:13.3]} 42. Rxa6 {[%clk 0:00:19.9]} 42... Kc4 {[%clk 0:00:13.9]} 43. Ka2
{[%clk 0:00:19.8]} 43... Rf1 {[%clk 0:00:11.9]} 44. Re4 {[%clk 0:00:17.2]} 44...
Kd3 {[%clk 0:00:11.5]} 45. Rh4 {[%clk 0:00:17.5]} 45... c4 {[%clk 0:00:11.4]}
46. Rd6 {[%clk 0:00:16.8]} 1-0

[Event "Early-Titled-Tuesday-Blitz-February-13-2024"]
[Site "Chess.com"]
[Date "2024.02.13"]
[Round "6"]
[White "Chernov_Alexander_A"]
[Black "sewlins"]
[Result "0-1"]
[WhiteElo "2248"]
[BlackElo "2127"]
[TimeControl "180+1"]
[EndTime "9:10:27 PST"]
[Termination "sewlins won on time"]

1. d4 {[%clk 0:03:00.9]} 1... e6 {[%clk 0:02:59.5]} 2. g3 {[%clk 0:02:57.9]}
2... c5 {[%clk 0:02:58.3]} 3. Nf3 {[%clk 0:02:53.9]} 3... cxd4 {[%clk
0:02:52.5]} 4. Nxd4 {[%clk 0:02:53.5]} 4... d5 {[%clk 0:02:52.8]} 5. Bg2 {[%clk
0:02:50.4]} 5... e5 {[%clk 0:02:51.6]} 6. Nb3 {[%clk 0:02:48.5]} 6... Nf6 {[%clk
0:02:48.7]} 7. O-O {[%clk 0:02:46.5]} 7... Nc6 {[%clk 0:02:43.1]} 8. c4 {[%clk
0:02:46.2]} 8... d4 {[%clk 0:02:36.9]} 9. e3 {[%clk 0:02:41.9]} 9... Be7 {[%clk
0:02:35.3]} 10. exd4 {[%clk 0:02:34.5]} 10... exd4 {[%clk 0:02:24.3]} 11. N1d2
{[%clk 0:02:29.1]} 11... O-O {[%clk 0:02:22.6]} 12. Nf3 {[%clk 0:02:25.9]} 12...
d3 {[%clk 0:01:56.6]} 13. Bf4 {[%clk 0:02:03.9]} 13... a5 {[%clk 0:01:46.7]} 14.
Nbd2 {[%clk 0:01:49.9]} 14... Bf5 {[%clk 0:01:35.8]} 15. h3 {[%clk 0:01:46.2]}
15... Bc5 {[%clk 0:01:21.6]} 16. g4 {[%clk 0:01:44.1]} 16... Bg6 {[%clk
0:01:21.8]} 17. Bg3 {[%clk 0:01:38.6]} 17... h5 {[%clk 0:01:16.5]} 18. g5 {[%clk
0:01:25.5]} 18... Nh7 {[%clk 0:01:16.6]} 19. h4 {[%clk 0:01:25.6]} 19... Re8
{[%clk 0:01:17.1]} 20. Qb3 {[%clk 0:01:11.7]} 20... Qd7 {[%clk 0:01:09.7]} 21.
Kh2 {[%clk 0:01:07]} 21... a4 {[%clk 0:01:09.7]} 22. Qd1 {[%clk 0:00:59.8]}
22... Nf8 {[%clk 0:01:02.1]} 23. Re1 {[%clk 0:00:52.6]} 23... Rxe1 {[%clk
0:00:44.2]} 24. Qxe1 {[%clk 0:00:52.5]} 24... Re8 {[%clk 0:00:44.3]} 25. Qf1
{[%clk 0:00:45.4]} 25... Ne6 {[%clk 0:00:41.1]} 26. Bh3 {[%clk 0:00:41.5]} 26...
Qd8 {[%clk 0:00:39.7]} 27. b3 {[%clk 0:00:35.1]} 27... Ned4 {[%clk 0:00:36.9]}
28. bxa4 {[%clk 0:00:28.8]} 28... Re2 {[%clk 0:00:33.4]} 29. Nb3 {[%clk
0:00:20.9]} 29... Nxf3+ {[%clk 0:00:32.5]} 30. Kg2 {[%clk 0:00:20.9]} 30... Nce5
{[%clk 0:00:29.3]} 31. Nxc5 {[%clk 0:00:18]} 31... Qd4 {[%clk 0:00:23.2]} 32.
Nb3 {[%clk 0:00:16.4]} 32... Qe4 {[%clk 0:00:22.8]} 33. Nc5 {[%clk 0:00:12.8]}
33... Nxh4+ {[%clk 0:00:22.9]} 34. Kh2 {[%clk 0:00:11.8]} 34... Qxc4 {[%clk
0:00:18.8]} 35. Bxh4 {[%clk 0:00:06.2]} 35... Qxh4 {[%clk 0:00:16.8]} 36. Qg2
{[%clk 0:00:03.3]} 36... Rxf2 {[%clk 0:00:16.6]} 37. Rg1 {[%clk 0:00:02.8]}
37... Rxg2+ {[%clk 0:00:16.8]} 38. Rxg2 {[%clk 0:00:02.9]} 38... Ng4+ {[%clk
0:00:16.9]} 0-1